fUSD/lending_fUSD_20260217
["ID","MTS","AMOUNT","RATE_DAILY","PERIOD"]
[405867019,1771372245122,-504.64635869,0.00014421,2]
[405867020,1771372245131,-1000.0,0.00014421,2]
[405867021,1771372245140,-1000.0,0.00014421,2]
[405867022,1771372245150,-1000.0,0.00014421,2]
[405867023,1771372245159,-502.68727614,0.00014421,2]
[405867024,1771372245168,-1000.0,0.00014421,2]
[405867025,1771372245177,-1000.0,0.00014421,2]
[405867026,1771372245186,-1000.0,0.00014421,2]
[405867027,1771372245195,-1000.0,0.00014421,2]
[405867028,1771372245205,-1000.0,0.00014421,2]
[405867029,1771372245214,-1000.0,0.00014421,2]
[405867030,1771372245223,-1000.0,0.00014421,2]
[405867031,1771372245233,-1000.0,0.00014421,2]
[405867032,1771372245242,-502.80271569,0.00014421,2]
[405867033,1771372245253,-1000.0,0.00014421,2]
[405867034,1771372245263,-1000.0,0.00014421,2]
[405867035,1771372245272,-1000.0,0.00014421,2]
[405867036,1771372245281,-1000.0,0.00014421,2]
[405867037,1771372245291,-1000.0,0.00014421,2]
[405867038,1771372245300,-1000.0,0.00014421,2]
[405867039,1771372245311,-1000.0,0.00014421,2]
[405867040,1771372245320,-895.81638304,0.00014421,2]
[405867041,1771372245330,-1000.0,0.00014421,2]
[405867042,1771372245339,-1000.0,0.00014538,2]
[405867043,1771372245348,-1000.0,0.0001457,2]
[405867044,1771372245358,-151.0,0.00014695,4]
[405867045,1771372245367,-3360.30504385,0.000147,2]
[405867047,1771372245377,-18858.15973457,0.00014711,2]
[405867048,1771372245387,-1000.0,0.00014756,2]
[405867050,1771372245396,-1000.0,0.00014794,2]
[405867051,1771372245406,-1000.0,0.00014826,2]
[405867052,1771372245415,-283.148028,0.00014831,7]
[405867053,1771372245424,-161.53,0.00014871,2]
[405867054,1771372245435,-176.05451458,0.000149,2]
[405867055,1771372245444,-176.05451457,0.000149,2]
[405867056,1771372245454,-176.05451457,0.000149,2]
[405867057,1771372245463,-3000.0,0.00014912,2]
[405867058,1771372245472,-3000.0,0.00014912,2]
[405867059,1771372245482,-2453.91707801,0.00014912,2]
[405867060,1771372245491,-1500.0,0.00014968,2]
[405867061,1771372245500,-1000.0,0.00014968,2]
[405867062,1771372245510,-1500.0,0.00014968,2]
[405867063,1771372245519,-1500.0,0.00014968,2]
[405867064,1771372245528,-1097.87159044,0.00014968,2]
[405867065,1771372245537,-1500.0,0.00014968,2]
[405867066,1771372245757,-1500.0,0.00014968,2]
[405867067,1771372245767,-1500.0,0.00014968,2]
[405867068,1771372245776,-504.47861685,0.00014968,2]
[405867069,1771372245785,-395.07222913,0.00014968,2]
[405867070,1771372245794,-1000.0,0.00014968,2]
[405867071,1771372245804,-1500.0,0.00014968,2]
[405867072,1771372245813,-1500.0,0.00014968,2]
[405867073,1771372245822,-1500.0,0.00014968,2]
[405867074,1771372245831,-1500.0,0.00014968,2]
[405867075,1771372245840,-1501.26419244,0.00014968,2]
[405867076,1771372245848,-505.49608217,0.00014968,2]
[405867077,1771372245858,-501.69367829,0.00014968,2]
[405867078,1771372245867,-715.83370402,0.00014968,2]
[405867079,1771372245876,-1512.37454404,0.00014968,2]
[405867080,1771372245885,-1500.0,0.00014968,2]
[405867081,1771372245894,-1500.0,0.00014968,2]
[405867082,1771372245903,-803.51620924,0.00014968,2]
[405867083,1771372245912,-1500.0,0.00014968,2]
[405867084,1771372245921,-1500.0,0.00014968,2]
[405867085,1771372245930,-250.0,0.00015,2]
[405867086,1771372245939,-213.45,0.00015056,2]
[405867087,1771372245951,-900.0,0.00015068,2]
[405867088,1771372245960,-1000.0,0.00015075,2]
[405867089,1771372245969,-1000.0,0.00015079,2]
[405867090,1771372245978,-1000.0,0.00015228,2]
[405867091,1771372245987,-1000.0,0.00015326,2]
[405867092,1771372245996,-64549.94771307,0.0001539,2]
[405867093,1771372246006,-3494.73225771,0.0001546,2]
[405867094,1771372246015,-2857.65528936,0.0001546,2]
[405867095,1771372246028,-500.0,0.00015516,2]
[405867096,1771372246037,-2052.7,0.00015516,2]
[405867097,1771372246046,-500.0,0.00015516,2]
[405867098,1771372246055,-649.58,0.00015516,2]
[405867099,1771372246064,-1180.75,0.00015516,2]
[405867100,1771372246073,-500.0,0.00015516,2]
[405867101,1771372246082,-2000.0,0.00015516,2]
[405867102,1771372246091,-360.43974274,0.00015516,2]
[405867103,1771372246101,-2000.0,0.00015516,2]
[405867104,1771372246111,-2000.0,0.00015516,2]
[405867105,1771372246120,-1120.78233815,0.00015516,2]
[405867106,1771372246129,-2000.0,0.00015516,2]
[405867107,1771372246138,-386.21895781,0.00015516,2]
[405867108,1771372246147,-1508.47777759,0.00015516,2]
[405867109,1771372246156,-2000.0,0.00015516,2]
[405867110,1771372246166,-2000.0,0.00015516,2]
[405867111,1771372246176,-1929.20363046,0.00015516,2]
[405867112,1771372246185,-158.35387756,0.00015516,2]
[405867113,1771372246194,-1219.64567907,0.00015516,2]
[405867114,1771372246204,-854.53335357,0.00015556,2]
[405867115,1771372246213,-1000.0,0.00015557,2]
[405867116,1771372246222,-1000.0,0.00015579,2]
[405867117,1771372246232,-161.51,0.00015622,2]
[405867118,1771372246241,-1000.0,0.00015634,2]
[405867119,1771372246251,-1000.0,0.00015636,2]
[405867120,1771372246260,-1000.0,0.0001564,2]
[405867121,1771372246269,-481.75678797,0.00015648,2]
[405867122,1771372246278,-1000.0,0.00015668,2]
[405867123,1771372246288,-301.18,0.00015702,2]
[405867124,1771372246297,-1000.0,0.00015801,2]
[405867125,1771372246307,-18858.15973457,0.00015856,2]
[405867126,1771372246316,-5000.0,0.0001596,2]
[405867127,1771372246326,-1000.0,0.00015983,2]
[405867128,1771372246335,-173.57638878,0.00016,3]
[405867129,1771372246344,-160.0,0.00016,3]
[405867130,1771372246354,-276.734435,0.00016,2]
[405867131,1771372246363,-2000.0,0.00016,2]
[405867132,1771372246372,-1000.0,0.00016038,2]
[405867133,1771372246381,-481.75678797,0.00016039,2]
[405867134,1771372246391,-2500.0,0.00016064,2]
[405867135,1771372246400,-1787.66016397,0.00016064,2]
[405867136,1771372246410,-1007.7222609,0.00016064,2]
[405867137,1771372246419,-960.3517219,0.00016064,2]
[405867138,1771372246428,-2500.0,0.00016064,2]
[405867139,1771372246438,-1510.33829166,0.00016064,2]
[405867140,1771372246447,-1800.0,0.00016082,2]
[405867141,1771372246456,-9999.99,0.00016116,2]
[405867142,1771372246465,-1000.0,0.00016198,2]
[405867143,1771372246475,-150.0,0.000162,2]
[405867144,1771372246484,-1000.0,0.00016224,7]
[405867145,1771372246493,-1000.0,0.00016251,2]
[405867146,1771372246502,-1000.0,0.00016293,2]
[405867147,1771372246512,-1000.0,0.000163,2]
[405867148,1771372246521,-3360.30504385,0.000163,2]
[405867149,1771372246530,-161.53,0.00016301,2]
[405867150,1771372246539,-1000.0,0.00016319,2]
[405867151,1771372246549,-500.0,0.00016356,2]
[405867152,1771372246558,-500.0,0.00016356,2]
[405867153,1771372246567,-213.45,0.00016413,2]
[405867154,1771372246576,-2789.9,0.00016438,2]
[405867155,1771372246585,-887.51,0.00016438,2]
[405867156,1771372246595,-151.02975848,0.00016438,2]
[405867157,1771372246604,-900.0,0.00016438,2]
[405867158,1771372246613,-1000.0,0.0001646,2]
[405867159,1771372246622,-150.0,0.000165,2]
[405867160,1771372246632,-2000.0,0.000165,2]
[405867161,1771372246641,-1000.0,0.00016524,2]
[405867162,1771372246650,-1088.37215301,0.00016561,2]
[405867163,1771372246659,-473.31058807,0.00016561,2]
[405867164,1771372246668,-1000.0,0.00016563,2]
[405867165,1771372246677,-1000.0,0.00016569,2]
[405867166,1771372246686,-1035.74923491,0.00016612,2]
[405867167,1771372246696,-457.49810709,0.00016612,2]
[405867168,1771372246705,-64549.94771307,0.00016617,2]
[405867169,1771372246715,-15296.93137855,0.00016705,2]
[405867170,1771372246723,-842.0,0.0001672,2]
[405867171,1771372246733,-2835.0,0.0001672,2]
[405867172,1771372246742,-150.0,0.000168,2]
[405867173,1771372246751,-150.0,0.00016905,2]
[405867174,1771372246760,-1000.0,0.0001695,2]
[405867175,1771372246769,-500.0,0.00016999,2]
[405867176,1771372246778,-353.7,0.00016999,2]
[405867177,1771372246787,-2052.7,0.00016999,2]
[405867178,1771372246796,-2052.7,0.00016999,2]
[405867179,1771372246806,-2052.7,0.00016999,2]
[405867180,1771372246817,-2052.7,0.00016999,2]
[405867181,1771372246826,-2052.77678348,0.00016999,2]
[405867182,1771372246835,-500.0,0.00016999,2]
[405867183,1771372246844,-500.0,0.00016999,2]
[405867184,1771372246853,-325.29,0.00016999,2]
[405867185,1771372246862,-649.58,0.00016999,2]
[405867186,1771372246871,-649.58,0.00016999,2]
[405867187,1771372246880,-649.58,0.00016999,2]
[405867188,1771372246889,-649.58,0.00016999,2]
[405867189,1771372246898,-649.74,0.00016999,2]
[405867190,1771372246907,-1180.75,0.00016999,2]
[405867191,1771372246916,-1180.75,0.00016999,2]
[405867192,1771372246926,-1180.75,0.00016999,2]
[405867193,1771372246935,-1180.75,0.00016999,2]
[405867194,1771372246944,-1180.79,0.00016999,2]
[405867195,1771372246958,-18858.15973457,0.00017,2]
[405867196,1771372246967,-1000.0,0.00017026,2]
[405867197,1771372246976,-2835.0,0.0001704,2]
[405867198,1771372246986,-2835.0,0.0001704,2]
[405867199,1771372246997,-160.0,0.0001704,2]
[405867200,1771372247006,-1348.76288427,0.00017096,2]
[405867201,1771372247015,-1387.0,0.00017096,2]
[405867202,1771372247026,-150.0,0.00017096,2]
[405867203,1771372247035,-151.02878078,0.00017096,2]
[405867204,1771372247044,-150.0,0.00017096,2]
[405867205,1771372247053,-150.0,0.00017096,2]
[405867206,1771372247063,-150.0,0.00017096,2]
[405867207,1771372247072,-500.0,0.00017096,2]
[405867208,1771372247081,-244.28993987,0.00017096,2]
[405867209,1771372247098,-150.0,0.00017096,2]
[405867210,1771372247109,-150.0,0.00017096,2]
[405867211,1771372247120,-150.0,0.00017096,2]
[405867212,1771372247130,-150.0,0.00017096,2]
[405867213,1771372247139,-500.0,0.00017096,2]
[405867214,1771372247150,-205.12968692,0.00017096,2]
[405867215,1771372247164,-500.0,0.00017096,2]
[405867216,1771372247178,-150.0,0.00017096,2]
[405867217,1771372247187,-150.0,0.00017096,2]
[405867218,1771372247196,-150.0,0.00017096,2]
[405867219,1771372247205,-150.0,0.00017096,2]
[405867220,1771372247214,-150.0,0.00017096,2]
[405867221,1771372247224,-150.31509327,0.00017096,2]
[405867222,1771372247234,-150.0,0.00017096,2]
[405867223,1771372247243,-150.0,0.00017096,2]
[405867224,1771372247253,-500.0,0.00017096,2]
[405867225,1771372247262,-150.0,0.00017096,2]
[405867226,1771372247271,-150.0,0.00017096,2]
[405867227,1771372247280,-150.0,0.00017096,2]
[405867228,1771372247290,-150.0,0.00017096,2]
[405867229,1771372247299,-150.0,0.00017096,2]
[405867230,1771372247308,-150.0,0.00017096,2]
[405867231,1771372247318,-500.0,0.00017097,2]
[405867232,1771372247327,-500.0,0.00017097,2]
[405867233,1771372247336,-500.0,0.00017097,2]
[405867234,1771372247346,-500.0,0.00017097,2]
[405867235,1771372247355,-500.0,0.00017097,2]
[405867236,1771372247365,-500.0,0.00017097,2]
[405867237,1771372247374,-500.0,0.00017097,2]
[405867238,1771372247384,-500.0,0.00017097,2]
[405867239,1771372247393,-500.0,0.00017097,2]
[405867240,1771372247402,-500.0,0.00017097,2]
[405867241,1771372247412,-500.0,0.00017097,2]
[405867242,1771372247429,-500.0,0.00017097,2]
[405867243,1771372247445,-500.0,0.00017097,2]
[405867244,1771372247458,-500.0,0.00017097,2]
[405867245,1771372247474,-500.0,0.00017097,2]
[405867246,1771372247489,-500.0,0.00017097,2]
[405867247,1771372247504,-500.0,0.00017097,2]
[405867248,1771372247518,-500.0,0.00017097,2]
[405867249,1771372247530,-500.0,0.00017097,2]
[405867250,1771372247544,-500.0,0.00017097,2]
[405867251,1771372247559,-151.0,0.00017097,2]
[405867252,1771372247575,-156.587,0.00017097,2]
[405867253,1771372247590,-162.380719,0.00017097,2]
[405867254,1771372247604,-159.19814613,0.00017097,2]
[405867255,1771372247620,-277.35679052,0.00017097,2]
[405867256,1771372247634,-150.0,0.000171,2]
[405867257,1771372247650,-196837.22809,0.000171,2]
[405867258,1771372247665,-820.0,0.000171,2]
[405867259,1771372247680,-274.86910021,0.000171,2]
[405867260,1771372247694,-1000.0,0.00017117,2]
[405867261,1771372247706,-1387.0,0.00017151,2]
[405867262,1771372247718,-150.0,0.00017151,2]
[405867263,1771372247737,-150.0,0.00017151,2]
[405867264,1771372247749,-295.69274942,0.00017151,2]
[405867265,1771372247760,-150.0,0.00017151,2]
[405867266,1771372247774,-500.0,0.00017151,2]
[405867267,1771372247789,-150.0,0.00017151,2]
[405867268,1771372247801,-200.36674187,0.00017151,2]
[405867269,1771372247812,-200.18645604,0.00017151,2]
[405867270,1771372247825,-150.0,0.00017151,2]
[405867271,1771372247838,-500.0,0.00017151,2]
[405867272,1771372247851,-500.0,0.00017151,2]
[405867273,1771372247862,-150.0,0.00017151,2]
[405867274,1771372247875,-150.0,0.00017151,2]
[405867275,1771372247887,-150.0,0.00017151,2]
[405867276,1771372247900,-150.0,0.00017151,2]
[405867277,1771372247912,-150.0,0.00017151,2]
[405867278,1771372247925,-150.0,0.00017151,2]
[405867279,1771372247938,-500.0,0.00017151,2]
[405867280,1771372247952,-150.0,0.00017151,2]
[405867281,1771372247965,-150.0,0.00017151,2]
[405867282,1771372247978,-200.0,0.00017151,2]
[405867283,1771372247996,-1348.76288427,0.00017178,2]
[405867284,1771372248009,-1387.0,0.00017206,2]
[405867285,1771372248022,-200.0,0.00017206,2]
[405867286,1771372248035,-150.0,0.00017206,2]
[405867287,1771372248048,-150.0,0.00017206,2]
[405867288,1771372248060,-500.0,0.00017206,2]
[405867289,1771372248072,-200.89245722,0.00017206,2]
[405867290,1771372248085,-150.0,0.00017206,2]
[405867291,1771372248097,-500.0,0.00017206,2]
[405867292,1771372248110,-500.0,0.00017206,2]
[405867293,1771372248123,-200.0,0.00017206,2]
[405867294,1771372248136,-200.0,0.00017206,2]
[405867295,1771372248148,-200.0,0.00017206,2]
[405867296,1771372248161,-200.0,0.00017206,2]
[405867297,1771372248174,-296.0,0.00017206,2]
[405867298,1771372248187,-200.0,0.00017206,2]
[405867299,1771372248200,-500.0,0.00017206,2]
[405867300,1771372248213,-201.09695119,0.00017206,2]
[405867301,1771372248226,-200.0,0.00017206,2]
[405867302,1771372248239,-1348.76288427,0.00017233,2]
[405867303,1771372248252,-3354.94878458,0.00017254,2]
[405867304,1771372248265,-1000.0,0.0001726,2]
[405867305,1771372248278,-1387.0,0.0001726,2]
[405867306,1771372248290,-270.15883999,0.0001726,2]
[405867307,1771372248303,-202.12850518,0.0001726,2]
[405867308,1771372248316,-500.0,0.0001726,2]
[405867309,1771372248329,-199.65624143,0.0001726,2]
[405867310,1771372248343,-500.0,0.0001726,2]
[405867311,1771372248356,-500.0,0.0001726,2]
[405867312,1771372248368,-500.0,0.0001726,2]
[405867313,1771372248381,-150.0,0.00017305,2]
[405867314,1771372248394,-1348.76288427,0.00017315,2]
[405867315,1771372248406,-1387.0,0.00017315,2]
[405867316,1771372248419,-500.0,0.00017315,2]
[405867317,1771372248432,-500.0,0.00017315,2]
[405867318,1771372248445,-500.0,0.00017315,2]
[405867319,1771372248457,-500.0,0.00017315,2]
[405867320,1771372248469,-1000.0,0.0001732,2]
[405867321,1771372248482,-404.0,0.00017326,2]
[405867322,1771372248494,-150.0,0.00017351,2]
[405867323,1771372248507,-1000.0,0.00017356,2]
[405867324,1771372248520,-166.11141928,0.00017365,2]
[405867325,1771372248533,-1348.76288427,0.0001737,2]
[405867326,1771372248545,-1387.0,0.0001737,2]
[405867327,1771372248558,-630.25617345,0.0001737,2]
[405867328,1771372248570,-382.17209928,0.0001737,2]
[405867329,1771372248582,-500.0,0.0001737,2]
[405867330,1771372248594,-500.33776257,0.0001737,2]
[405867331,1771372248607,-150.0,0.00017396,2]
[405867332,1771372248619,-150.0,0.000174,2]
[405867333,1771372248631,-535.0,0.00017407,2]
[405867334,1771372248644,-162.702,0.00017412,2]
[405867335,1771372248656,-619.543,0.00017412,2]
[405867336,1771372248669,-1164.0,0.00017412,2]
[405867337,1771372248681,-1338.0,0.00017412,2]
[405867338,1771372248694,-3540.659,0.00017412,2]
[405867339,1771372248706,-150.248,0.00017412,2]
[405867340,1771372248718,-1275.0,0.00017412,2]
[405867341,1771372248730,-459.039,0.00017412,2]
[405867342,1771372248742,-2452.0,0.00017412,2]
[405867343,1771372248754,-1387.0,0.00017425,2]
[405867344,1771372248767,-500.0,0.00017425,2]
[405867345,1771372248780,-150.0,0.00017448,2]
[405867346,1771372248793,-1800.0,0.00017452,7]
[405867347,1771372248805,-1348.76288427,0.00017452,2]
[405867348,1771372248818,-996.49958588,0.00017472,2]
[405867349,1771372248830,-4331.07,0.00017479,2]
[405867350,1771372248843,-150.0,0.00017479,2]
[405867351,1771372248856,-1387.0,0.0001748,2]
[405867352,1771372248869,-500.0,0.0001748,2]
[405867353,1771372248882,-1000.0,0.00017482,2]
[405867354,1771372248895,-150.0,0.00017486,2]
[405867355,1771372248907,-2000.0,0.000175,2]
[405867356,1771372248920,-1000.0,0.000175,6]
[405867357,1771372248933,-300.0,0.000175,6]
[405867358,1771372248945,-1348.76288427,0.00017507,2]
[405867359,1771372248961,-167.32,0.00017534,2]
[405867360,1771372248973,-1000.0,0.00017534,2]
[405867361,1771372248985,-1387.0,0.00017534,2]
[405867362,1771372248998,-500.0,0.00017534,2]
[405867363,1771372249011,-1000.0,0.00017537,2]
[405867364,1771372249022,-150.0,0.00017554,2]
[405867365,1771372249037,-1348.76288427,0.00017589,2]
[405867366,1771372249049,-1387.0,0.00017589,2]
[405867367,1771372249062,-500.0,0.00017589,2]
[405867368,1771372249075,-167.32,0.0001759,2]
[405867369,1771372249088,-1000.0,0.000176,6]
[405867370,1771372249100,-300.0,0.000176,6]
[405867371,1771372249113,-1000.0,0.00017604,2]
[405867372,1771372249126,-535.0,0.00017638,2]
[405867373,1771372249139,-10846.14923654,0.0001764,2]
[405867374,1771372249152,-1348.76288427,0.00017644,2]
[405867375,1771372249164,-1387.0,0.00017644,2]
[405867376,1771372249177,-500.0,0.00017644,2]
[405867377,1771372249189,-167.32,0.00017645,2]
[405867378,1771372249202,-287.61899177,0.00017645,2]
[405867379,1771372249214,-350.0,0.00017676,2]
[405867380,1771372249228,-2882.0,0.0001768,2]
[405867381,1771372249241,-1387.0,0.00017699,2]
[405867382,1771372249254,-224.65460803,0.00017699,2]
[405867383,1771372249266,-150.0,0.000177,2]
[405867384,1771372249279,-1000.0,0.000177,6]
[405867385,1771372249291,-300.0,0.000177,6]
[405867386,1771372249304,-150.0,0.0001771,2]
[405867387,1771372249317,-1000.0,0.00017719,2]
[405867388,1771372249331,-500.0,0.00017726,7]
[405867389,1771372249344,-1348.76288427,0.00017726,2]
[405867390,1771372249356,-2004.41635969,0.0001773,2]
[405867391,1771372249368,-1195.0,0.0001773,2]
[405867392,1771372249381,-1387.0,0.00017754,2]
[405867393,1771372249395,-1000.0,0.00017755,2]
[405867394,1771372249408,-1000.0,0.00017761,2]
[405867395,1771372249421,-150.0,0.00017768,2]
[405867396,1771372249433,-150.0,0.00017771,2]
[405867397,1771372249447,-161.53,0.00017775,2]
[405867398,1771372249459,-1000.0,0.00017775,2]
[405867399,1771372249473,-1000.0,0.00017775,2]
[405867400,1771372249485,-1000.0,0.00017775,2]
[405867401,1771372249498,-1000.0,0.00017775,2]
[405867402,1771372249511,-1000.0,0.00017775,2]
[405867403,1771372249525,-1000.0,0.00017775,2]
[405867404,1771372249538,-1000.0,0.00017775,2]
[405867405,1771372249550,-1000.0,0.00017775,2]
[405867406,1771372249563,-1000.0,0.00017775,2]
[405867407,1771372249576,-1348.76288427,0.00017781,2]
[405867408,1771372249589,-1195.0,0.00017798,2]
[405867409,1771372249602,-1000.0,0.000178,6]
[405867410,1771372249615,-300.0,0.000178,6]
[405867411,1771372249627,-150.0,0.00017805,2]
[405867412,1771372249642,-444.64,0.00017808,2]
[405867413,1771372249654,-500.0,0.00017808,2]
[405867414,1771372249667,-500.0,0.00017808,2]
[405867415,1771372249681,-500.0,0.00017808,2]
[405867416,1771372249694,-500.0,0.00017808,2]
[405867417,1771372249706,-500.0,0.00017808,2]
[405867418,1771372249717,-500.0,0.00017808,2]
[405867419,1771372249727,-500.0,0.00017808,2]
[405867420,1771372249736,-500.0,0.00017808,2]
[405867421,1771372250177,-500.0,0.00017808,2]
[405867422,1771372250195,-500.0,0.00017808,2]
[405867423,1771372250205,-500.0,0.00017808,2]
[405867424,1771372250215,-500.0,0.00017808,2]
[405867425,1771372250225,-478.48493337,0.00017808,2]
[405867426,1771372250234,-500.0,0.00017808,2]
[405867427,1771372250243,-500.0,0.00017808,2]
[405867428,1771372250252,-500.0,0.00017808,2]
[405867429,1771372250262,-500.0,0.00017808,2]
[405867430,1771372250271,-500.0,0.00017808,2]
[405867431,1771372250281,-500.0,0.00017808,2]
[405867432,1771372250290,-500.0,0.00017808,2]
[405867433,1771372250299,-800.0,0.00017808,2]
[405867434,1771372250309,-1000.0,0.00017808,2]
[405867435,1771372250318,-250.0,0.00017808,20]
[405867436,1771372250327,-250.0,0.00017808,20]
[405867437,1771372250336,-250.0,0.00017808,20]
[405867438,1771372250346,-250.0,0.00017808,20]
[405867439,1771372250355,-250.0,0.00017808,20]
[405867440,1771372250365,-250.0,0.00017808,20]
[405867441,1771372250374,-250.0,0.00017808,20]
[405867442,1771372250384,-175.581622,0.00017808,20]
[405867443,1771372250393,-1387.0,0.00017808,2]
[405867444,1771372250403,-535.0,0.0001781,2]
[405867445,1771372250412,-213.45,0.00017813,2]
[405867446,1771372250421,-535.0,0.00017842,2]
[405867447,1771372250430,-150.0,0.00017844,2]
[405867448,1771372250440,-64549.94771307,0.00017844,2]
[405867449,1771372250450,-350.0,0.00017845,2]
[405867450,1771372250460,-1000.0,0.00017854,2]
[405867451,1771372250468,-213.45,0.00017855,2]
[405867452,1771372250478,-500.0,0.00017856,2]
[405867453,1771372250487,-1348.76288427,0.00017863,2]
[405867454,1771372250496,-1387.0,0.00017863,2]
[405867455,1771372250506,-1000.0,0.00017866,2]
[405867456,1771372250515,-150.0,0.00017874,2]
[405867457,1771372250524,-1000.0,0.00017888,2]
[405867458,1771372250534,-150.0,0.00017893,2]
[405867459,1771372250543,-150.0,0.00017893,2]
[405867460,1771372250553,-150.0,0.00017893,2]
[405867461,1771372250562,-150.0,0.00017893,2]
[405867462,1771372250571,-25000.0,0.000179,3]
[405867463,1771372250580,-332.0066979,0.000179,2]
[405867464,1771372250590,-1315.0,0.000179,6]
[405867465,1771372250599,-389.0,0.000179,6]
[405867466,1771372250608,-37474.45314742,0.000179,2]
[405867467,1771372250617,-3360.30504385,0.000179,2]
[405867468,1771372250626,-4326.33066919,0.000179,2]
[405867469,1771372250636,-150.0,0.00017904,2]
[405867470,1771372250645,-150.0,0.00017904,2]
[405867471,1771372250655,-535.0,0.00017906,2]
[405867472,1771372250664,-1387.0,0.00017918,2]
[405867473,1771372250673,-150.0,0.00017918,2]
[405867474,1771372250683,-1000.0,0.00017925,2]
[405867475,1771372250692,-1195.0,0.00017926,2]
[405867476,1771372250701,-500.0,0.00017944,3]
[405867477,1771372250710,-721.12765535,0.00017944,3]
[405867478,1771372250720,-151.0,0.00017944,3]
[405867479,1771372250729,-500.0,0.00017944,3]
[405867480,1771372250738,-747.8093786,0.00017944,3]
[405867481,1771372250748,-151.0,0.00017944,3]
[405867482,1771372250757,-500.0,0.00017944,3]
[405867483,1771372250767,-775.47832561,0.00017944,3]
[405867484,1771372250776,-500.0,0.00017944,3]
[405867485,1771372250786,-500.0,0.00017944,3]
[405867486,1771372250795,-804.17102365,0.00017944,3]
[405867487,1771372250804,-151.0,0.00017944,3]
[405867488,1771372250814,-500.0,0.00017944,3]
[405867489,1771372250823,-500.0,0.00017944,3]
[405867490,1771372250832,-833.92535153,0.00017944,3]
[405867491,1771372250841,-151.0,0.00017944,3]
[405867492,1771372250851,-500.0,0.00017944,3]
[405867493,1771372250860,-500.0,0.00017944,3]
[405867494,1771372250869,-864.78058953,0.00017944,3]
[405867495,1771372250879,-151.0,0.00017944,3]
[405867496,1771372250888,-500.0,0.00017944,3]
[405867497,1771372250898,-500.0,0.00017944,3]
[405867498,1771372250908,-896.77747135,0.00017944,3]
[405867499,1771372250917,-151.0,0.00017944,3]
[405867500,1771372250927,-500.0,0.00017944,3]
[405867501,1771372250936,-500.0,0.00017944,3]
[405867502,1771372250946,-151.0,0.00017944,3]
[405867503,1771372250959,-929.95823779,0.00017944,3]
[405867504,1771372250969,-500.0,0.00017944,3]
[405867505,1771372250978,-500.0,0.00017944,3]
[405867506,1771372250987,-964.36669259,0.00017944,3]
[405867507,1771372251003,-500.0,0.00017944,3]
[405867508,1771372251012,-500.0,0.00017944,3]
[405867509,1771372251021,-151.0,0.00017944,3]
[405867510,1771372251032,-1000.04826021,0.00017944,3]
[405867511,1771372251042,-500.0,0.00017944,3]
[405867512,1771372251051,-500.0,0.00017944,3]
[405867513,1771372251061,-151.0,0.00017944,3]
[405867514,1771372251071,-200.0,0.00017944,3]
[405867515,1771372251080,-1037.05004584,0.00017944,3]
[405867516,1771372251090,-151.0,0.00017944,3]
[405867517,1771372251099,-200.0,0.00017944,3]
[405867518,1771372251109,-500.0,0.00017944,3]
[405867519,1771372251118,-151.0,0.00017944,3]
[405867520,1771372251128,-500.0,0.00017944,3]